lending/lending_fUSD_20240112
["ID","MTS","AMOUNT","RATE_DAILY","PERIOD"]
[311358761,1705067494109,-500.0,0.0002423,2]
[311358762,1705067494119,-500.0,0.0002423,2]
[311358763,1705067494129,-1172.6,0.0002423,2]
[311358764,1705067494139,-613.44,0.0002423,2]
[311358765,1705067494153,-771.85,0.0002423,2]
[311358766,1705067494163,-843.5,0.0002423,2]
[311358767,1705067494174,-500.0,0.0002423,2]
[311358768,1705067494185,-752.62,0.0002423,2]
[311358769,1705067494195,-500.0,0.0002423,2]
[311358770,1705067494205,-500.0,0.0002423,2]
[311358771,1705067494216,-1338.76,0.0002423,2]
[311358772,1705067494227,-570.42,0.0002423,2]
[311358773,1705067494238,-500.0,0.0002423,2]
[311358774,1705067494248,-506.47,0.0002423,2]
[311358775,1705067494258,-2558.46,0.0002423,2]
[311358776,1705067494268,-500.0,0.0002423,2]
[311358777,1705067494279,-500.0,0.0002423,2]
[311358778,1705067494289,-778.89,0.0002423,2]
[311358779,1705067494303,-500.0,0.0002423,2]
[311358780,1705067494313,-608.12,0.0002423,2]
[311358781,1705067494323,-500.0,0.0002423,2]
[311358782,1705067494334,-761.66,0.0002423,2]
[311358783,1705067494345,-500.0,0.0002423,2]
[311358784,1705067494354,-500.0,0.0002423,2]
[311358785,1705067494364,-606.09,0.0002423,2]
[311358786,1705067494374,-2321.31,0.0002423,2]
[311358787,1705067494384,-503.85,0.0002423,2]
[311358788,1705067494396,-792.73,0.0002423,2]
[311358789,1705067494406,-505.57,0.0002423,2]
[311358790,1705067494416,-986.73,0.0002423,2]
[311358791,1705067494426,-500.0,0.0002423,2]
[311358792,1705067494437,-500.0,0.0002423,2]
[311358793,1705067494450,-1855.62,0.0002423,2]
[311358794,1705067494462,-500.0,0.0002423,2]
[311358795,1705067494472,-500.0,0.0002423,2]
[311358796,1705067494484,-544.3,0.0002423,2]
[311358797,1705067494496,-500.0,0.0002423,2]
[311358798,1705067494508,-922.23,0.0002423,2]
[311358799,1705067494518,-500.0,0.0002423,2]
[311358800,1705067494529,-855.09,0.0002423,2]
[311358801,1705067494540,-1739.46,0.0002423,2]
[311358802,1705067494553,-539.44,0.0002423,2]
[311358803,1705067494564,-500.0,0.0002423,2]
[311358804,1705067494575,-500.0,0.0002423,2]
[311358805,1705067494585,-628.22,0.0002423,2]
[311358806,1705067494595,-500.0,0.0002423,2]
[311358807,1705067494605,-564.76,0.0002423,2]
[311358808,1705067494616,-500.0,0.0002423,2]
[311358809,1705067494626,-500.0,0.0002423,2]
[311358810,1705067494636,-500.0,0.0002423,2]
[311358811,1705067494647,-500.0,0.0002423,2]
[311358812,1705067494657,-5795.35,0.0002423,2]
[311358813,1705067494668,-500.0,0.0002423,2]
[311358814,1705067494678,-500.0,0.0002423,2]
[311358815,1705067494688,-500.0,0.0002423,2]
[311358816,1705067494699,-500.0,0.0002423,2]
[311358817,1705067494710,-518.54,0.0002423,2]
[311358818,1705067494720,-577.35,0.0002423,2]
[311358819,1705067494730,-500.0,0.00024231,2]
[311358820,1705067494741,-506.82,0.00024231,2]
[311358821,1705067494752,-898.46,0.00024231,2]
[311358822,1705067494762,-689.65,0.00024231,2]
[311358823,1705067494773,-689.5,0.00024231,2]
[311358824,1705067494783,-544.38,0.00024231,2]
[311358825,1705067494794,-517.93,0.00024231,2]
[311358826,1705067494806,-500.0,0.00024231,2]
[311358827,1705067494816,-500.0,0.00024231,2]
[311358828,1705067494826,-603.88,0.00024231,2]
[311358829,1705067494836,-500.0,0.00024231,2]
[311358830,1705067494846,-807.14,0.00024231,2]
[311358831,1705067494856,-500.0,0.00024231,2]
[311358832,1705067494865,-763.57,0.00024231,2]
[311358833,1705067494875,-614.96,0.00024231,2]
[311358834,1705067494885,-500.0,0.00024231,2]
[311358835,1705067494895,-500.0,0.00024231,2]
[311358836,1705067494905,-881.83,0.00024231,2]
[311358837,1705067494915,-500.0,0.00024231,2]
[311358838,1705067494925,-500.0,0.00024231,2]
[311358839,1705067494936,-547.66,0.00024231,2]
[311358840,1705067494946,-717.02,0.00024231,2]
[311358841,1705067494956,-500.0,0.00024231,2]
[311358842,1705067494965,-500.0,0.00024231,2]
[311358843,1705067494975,-588.39,0.00024231,2]
[311358844,1705067494985,-583.76,0.00024233,2]
[311358845,1705067494994,-500.0,0.00024233,2]
[311358846,1705067495004,-500.0,0.00024233,2]
[311358847,1705067495014,-500.0,0.00024233,2]
[311358848,1705067495025,-500.0,0.00024233,2]
[311358849,1705067495035,-295.62,0.00024233,2]
[311358850,1705067495046,-412.1,0.00024233,2]
[311358851,1705067495056,-500.0,0.00024233,2]
[311358852,1705067495067,-500.0,0.00024233,2]
[311358853,1705067495077,-592.42,0.00024233,2]
[311358854,1705067495087,-360.79,0.00024233,2]
[311358855,1705067495098,-500.0,0.00024233,2]
[311358856,1705067495109,-500.0,0.00024503,2]
[311358857,1705067495119,-500.0,0.00024503,2]
[311358858,1705067495130,-500.0,0.00024503,2]
[311358859,1705067495140,-500.0,0.00024503,2]
[311358860,1705067495151,-500.0,0.00024503,2]
[311358861,1705067495162,-500.0,0.00024503,2]
[311358862,1705067495173,-500.0,0.00024503,2]
[311358863,1705067495186,-500.0,0.00024503,2]
[311358864,1705067495197,-500.0,0.00024503,2]
[311358865,1705067495208,-500.0,0.00024503,2]
[311358866,1705067495219,-500.0,0.00024503,2]
[311358867,1705067495229,-500.0,0.00024503,2]
[311358868,1705067495241,-500.0,0.00024503,2]
[311358869,1705067495252,-500.0,0.00024503,2]
[311358870,1705067495262,-500.0,0.00024503,2]
[311358871,1705067495273,-500.0,0.00024503,2]
[311358872,1705067495283,-505.4,0.00024503,2]
[311358873,1705067495293,-500.0,0.00024503,2]
[311358874,1705067495304,-1250.65,0.00024503,2]
[311358875,1705067495314,-500.0,0.00024503,2]
[311358876,1705067495324,-500.0,0.00024503,2]
[311358877,1705067495335,-7981.48,0.00024503,2]
[311358878,1705067495346,-500.0,0.00024503,2]
[311358879,1705067495356,-535.31,0.00024503,2]
[311358880,1705067495368,-1261.36,0.00024503,2]
[311358881,1705067495378,-8984.16,0.00024503,2]
[311358882,1705067495388,-1671.94,0.00024503,2]
[311358883,1705067495400,-3195.18,0.00024503,2]
[311358884,1705067495411,-500.0,0.00024503,2]
[311358885,1705067495422,-12299.66,0.00024503,2]
[311358886,1705067495433,-1110.57,0.00024503,2]
[311358887,1705067495443,-630.64,0.00024503,2]
[311358888,1705067495455,-500.0,0.00024503,2]
[311358889,1705067495466,-3123.71,0.00024503,2]
[311358890,1705067495477,-500.0,0.00024503,2]
[311358891,1705067495488,-500.0,0.00024503,2]
[311358892,1705067495499,-882.43,0.00024503,2]
[311358893,1705067495511,-2779.34,0.00024503,2]
[311358894,1705067495521,-500.0,0.00024503,2]
[311358895,1705067495532,-941.84,0.00024503,2]
[311358896,1705067495544,-703.36,0.00024503,2]
[311358897,1705067495554,-500.0,0.00024503,2]
[311358898,1705067495566,-580.21,0.00024503,2]
[311358899,1705067495577,-500.0,0.00024503,2]
[311358900,1705067495588,-500.0,0.00024503,2]
[311358901,1705067495599,-22278.0,0.00024503,2]
[311358902,1705067495611,-2697.74,0.00024503,2]
[311358903,1705067495622,-2896.08,0.00024503,2]
[311358904,1705067495632,-1033.16,0.00024503,2]
[311358905,1705067495643,-500.0,0.00024503,2]
[311358906,1705067495654,-1299.72,0.00024503,2]
[311358907,1705067495664,-1239.07,0.00024503,2]
[311358908,1705067495675,-994.29,0.00024503,2]
[311358909,1705067495686,-2369.38,0.00024503,2]
[311358910,1705067495697,-500.0,0.00024503,2]
[311358911,1705067495708,-500.0,0.00024503,2]
[311358912,1705067495718,-508.66,0.00024503,2]
[311358913,1705067495729,-500.0,0.00024503,2]
[311358914,1705067495740,-500.0,0.00024503,2]
[311358915,1705067495750,-500.0,0.00024503,2]
[311358916,1705067495761,-500.0,0.00024503,2]
[311358917,1705067495771,-500.0,0.00024503,2]
[311358918,1705067495782,-6520.81,0.00024503,2]
[311358919,1705067495794,-1237.49,0.00024503,2]
[311358920,1705067495805,-720.97,0.00024503,2]
[311358921,1705067495815,-4021.3,0.00024503,2]
[311358922,1705067495825,-500.0,0.00024503,2]
[311358923,1705067495836,-1358.89,0.00024503,2]
[311358924,1705067495847,-2605.83,0.00024503,2]
[311358925,1705067495858,-556.6,0.00024503,2]
[311358926,1705067495869,-1356.18,0.00024503,2]
[311358927,1705067495879,-500.0,0.00024503,2]
[311358928,1705067495889,-500.0,0.00024503,2]
[311358929,1705067495900,-500.0,0.00024503,2]
[311358930,1705067495912,-519.89,0.00024503,2]
[311358931,1705067495923,-2784.68,0.00024503,2]
[311358932,1705067495933,-709.85,0.00024503,2]
[311358933,1705067495944,-500.0,0.00024503,2]
[311358934,1705067495955,-500.0,0.00024503,2]
[311358935,1705067495967,-974.42,0.00024503,2]
[311358936,1705067495978,-2294.01,0.00024503,2]
[311358937,1705067495989,-500.0,0.00024503,2]
[311358938,1705067495999,-500.0,0.00024503,2]
[311358939,1705067496010,-500.0,0.00024503,2]
[311358940,1705067496021,-1586.88,0.00024503,2]
[311358941,1705067496032,-1607.34,0.00024503,2]
[311358942,1705067496045,-965.17927225,0.00024503,2]
[311358943,1705067496055,-500.0,0.00024503,2]
[311358944,1705067496067,-892.72,0.00024503,2]
[311358945,1705067496078,-1286.7,0.00024503,2]
[311358946,1705067496089,-500.0,0.00024503,2]
[311358947,1705067496100,-500.0,0.00024503,2]
[311358948,1705067496111,-500.0,0.00024503,2]
[311358949,1705067496122,-500.0,0.00024503,2]
[311358950,1705067496132,-563.27,0.00024503,2]
[311358951,1705067496143,-500.0,0.00024503,2]
[311358952,1705067496153,-500.0,0.00024503,2]
[311358953,1705067496164,-500.0,0.00024503,2]
[311358954,1705067496174,-834.9,0.00024503,2]
[311358955,1705067496185,-1002.65,0.00024503,2]
[311358956,1705067496197,-500.0,0.00024503,2]
[311358957,1705067496208,-500.0,0.00024503,2]
[311358958,1705067496220,-13676.69,0.00024503,2]
[311358959,1705067496232,-1317.28,0.00024503,2]
[311358960,1705067496243,-500.0,0.00024503,2]
[311358961,1705067496254,-500.0,0.00024503,2]
[311358962,1705067496264,-500.0,0.00024503,2]
[311358963,1705067496275,-771.85,0.00024503,2]
[311358964,1705067496286,-1642.76,0.00024503,2]
[311358965,1705067496298,-601.82,0.00024503,2]
[311358966,1705067496309,-500.0,0.00024503,2]
[311358967,1705067496319,-5698.97,0.00024503,2]
[311358968,1705067496331,-1051.05,0.00024503,2]
[311358969,1705067496342,-577.98,0.00024503,2]
[311358970,1705067496352,-852.82,0.00024503,2]
[311358971,1705067496363,-697.59,0.00024503,2]
[311358972,1705067496374,-1233.03,0.00024503,2]
[311358973,1705067496385,-500.0,0.00024503,2]
[311358974,1705067496396,-500.0,0.00024503,2]
[311358975,1705067496406,-2538.76,0.00024503,2]
[311358976,1705067496417,-1405.14,0.00024503,2]
[311358977,1705067496428,-673.52,0.00024503,2]
[311358978,1705067496439,-2213.37,0.00024503,2]
[311358979,1705067496449,-500.0,0.00024503,2]
[311358980,1705067496460,-500.0,0.00024503,2]
[311358981,1705067496471,-14904.63,0.00024503,2]
[311358982,1705067496482,-1129.13,0.00024503,2]
[311358983,1705067496494,-1026.68,0.00024503,2]
[311358984,1705067496506,-500.0,0.00024503,2]
[311358985,1705067496516,-3836.53,0.00024503,2]
[311358986,1705067496528,-848.03,0.00024503,2]
[311358987,1705067496538,-500.0,0.00024503,2]
[311358988,1705067496551,-500.0,0.00024503,2]
[311358989,1705067496563,-717.68,0.00024503,2]
[311358990,1705067496574,-1579.12,0.00024503,2]
[311358991,1705067496585,-500.0,0.00024503,2]
[311358992,1705067496596,-500.0,0.00024503,2]
[311358993,1705067496607,-500.0,0.00024503,2]
[311358994,1705067496618,-500.0,0.00024503,2]
[311358995,1705067496629,-1016.89,0.00024503,2]
[311358996,1705067496640,-1273.06,0.00024503,2]
[311358997,1705067496650,-500.0,0.00024503,2]
[311358998,1705067496662,-1990.06,0.00024503,2]
[311358999,1705067496673,-500.0,0.00024503,2]
[311359000,1705067496683,-642.71,0.00024503,2]
[311359001,1705067496694,-1962.61,0.00024503,2]
[311359002,1705067496705,-3858.89,0.00024503,2]
[311359003,1705067496715,-1731.39,0.00024503,2]
[311359004,1705067496726,-830.92,0.00024503,2]
[311359005,1705067496736,-1448.83,0.00024503,2]
[311359006,1705067496748,-500.0,0.00024503,2]
[311359007,1705067496759,-500.0,0.00024503,2]
[311359008,1705067496770,-899.04,0.00024503,2]
[311359009,1705067496782,-673.69,0.00024503,2]
[311359010,1705067496793,-436.80165146,0.00024503,2]
[311359011,1705067496804,-699.58,0.00024503,2]
[311359012,1705067496814,-2683.93,0.00024503,2]
[311359013,1705067496824,-4923.06,0.00024503,2]
[311359014,1705067496835,-2940.73,0.00024503,2]
[311359015,1705067496845,-500.0,0.00024503,2]
[311359016,1705067496855,-500.0,0.00024503,2]
[311359017,1705067496866,-660.73,0.00024503,2]
[311359018,1705067496876,-1814.82,0.00024503,2]
[311359019,1705067496887,-1795.65,0.00024503,2]
[311359020,1705067496897,-500.0,0.00024503,2]
[311359021,1705067496907,-500.0,0.00024503,2]
[311359022,1705067496918,-500.0,0.00024503,2]
[311359023,1705067496928,-500.0,0.00024503,2]
[311359024,1705067496941,-788.12,0.00024503,2]
[311359025,1705067496952,-2878.51,0.00024503,2]
[311359026,1705067496962,-1029.85,0.00024503,2]
[311359027,1705067496973,-500.0,0.00024504,2]
[311359028,1705067496983,-500.0,0.00024504,2]
[311359029,1705067496994,-500.0,0.00024504,2]
[311359030,1705067497005,-500.0,0.00024504,2]
[311359031,1705067497017,-500.0,0.00024504,2]
[311359032,1705067497028,-500.0,0.00024504,2]
[311359033,1705067497039,-500.0,0.00024504,2]
[311359034,1705067497051,-368.8,0.00024504,2]
[311359035,1705067497062,-523.27,0.00024504,2]
[311359036,1705067497073,-177.89,0.00024504,2]
[311359037,1705067497085,-581.49954874,0.00024504,2]
[311359038,1705067497095,-500.0,0.00024504,2]
[311359039,1705067497106,-500.0,0.00024504,2]
[311359040,1705067497117,-500.0,0.00024504,2]
[311359041,1705067497128,-388.79,0.00024504,2]
[311359042,1705067497140,-500.0,0.00024504,2]
[311359043,1705067497150,-500.0,0.00024504,2]
[311359044,1705067497161,-500.0,0.00024504,2]
[311359045,1705067497172,-500.0,0.00024504,2]
[311359046,1705067497186,-597.68,0.00024504,2]
[311359047,1705067497197,-500.0,0.00024504,2]
[311359048,1705067497208,-500.0,0.00024504,2]
[311359049,1705067497219,-500.0,0.00024504,2]
[311359050,1705067497232,-500.0,0.00024504,2]
[311359051,1705067497242,-500.0,0.00024504,2]
[311359052,1705067497253,-500.0,0.00024504,2]
[311359053,1705067497265,-500.0,0.00024504,2]
[311359054,1705067497277,-500.0,0.00024504,2]
[311359055,1705067497288,-500.0,0.00024504,2]
[311359056,1705067497301,-500.0,0.00024504,2]
[311359057,1705067497312,-500.0,0.00024504,2]
[311359058,1705067497323,-500.0,0.00024504,2]
[311359059,1705067497335,-500.0,0.00024504,2]
[311359060,1705067497346,-500.0,0.00024504,2]
[311359061,1705067497358,-500.0,0.00024504,2]
[311359062,1705067497368,-500.0,0.00024504,2]
[311359063,1705067497379,-532.55,0.00024504,2]
[311359064,1705067497390,-571.03,0.00024504,2]
[311359065,1705067497401,-500.0,0.00024504,2]
[311359066,1705067497412,-500.0,0.00024504,2]
[311359067,1705067497423,-500.0,0.00024504,2]
[311359068,1705067497435,-500.0,0.00024504,2]
[311359069,1705067497445,-500.0,0.00024504,2]
[311359070,1705067497458,-500.0,0.00024504,2]
[311359071,1705067497468,-250.0,0.00024504,2]
[311359072,1705067497479,-500.0,0.00024504,2]
[311359073,1705067497490,-500.0,0.00024504,2]
[311359074,1705067497501,-500.0,0.00024504,2]
[311359075,1705067497513,-500.0,0.00024504,2]
[311359076,1705067497524,-500.0,0.00024504,2]
[311359077,1705067497534,-500.0,0.00024504,2]
[311359078,1705067497546,-617.06,0.00024504,2]
[311359079,1705067497558,-500.0,0.00024504,2]
[311359080,1705067497568,-500.03,0.00024504,2]
[311359081,1705067497580,-500.0,0.00024504,2]
[311359082,1705067497591,-900.49,0.00024504,2]
[311359083,1705067497602,-500.0,0.00024504,2]
[311359084,1705067497613,-500.0,0.00024504,2]
[311359085,1705067497623,-500.0,0.00024504,2]
[311359086,1705067497634,-500.0,0.00024504,2]
[311359087,1705067497645,-500.0,0.00024504,2]
[311359088,1705067497655,-500.0,0.00024504,2]
[311359089,1705067497665,-580.22,0.00024504,2]
[311359090,1705067497676,-500.0,0.00024504,2]
[311359091,1705067497687,-500.0,0.00024504,2]
[311359092,1705067497699,-500.0,0.00024504,2]
[311359093,1705067497709,-376.17728238,0.00024504,2]
[311359094,1705067497720,-500.0,0.00024504,2]
[311359095,1705067497730,-500.0,0.00024504,2]
[311359096,1705067497741,-500.0,0.00024504,2]
[311359097,1705067497752,-500.0,0.00024504,2]
[311359098,1705067497762,-500.0,0.00024504,2]
[311359099,1705067497772,-500.0,0.00024504,2]
[311359100,1705067497783,-500.0,0.00024504,2]
[311359101,1705067497797,-500.0,0.00024504,2]
[311359102,1705067497807,-500.0,0.00024504,2]
[311359103,1705067497818,-988.76,0.00024504,2]
[311359104,1705067497829,-234.31947685,0.00024504,2]
[311359105,1705067498079,-500.0,0.00024504,2]
[311359106,1705067498090,-500.0,0.00024504,2]
[311359107,1705067498100,-500.0,0.00024504,2]
[311359108,1705067498110,-500.0,0.00024504,2]
[311359109,1705067498120,-536.8,0.00024504,2]
[311359110,1705067498131,-500.0,0.00024504,2]
[311359111,1705067498141,-676.74,0.00024504,2]
[311359112,1705067498151,-594.36,0.00024504,2]
[311359113,1705067498163,-500.0,0.00024504,2]
[311359114,1705067498174,-500.0,0.00024504,2]
[311359115,1705067498184,-500.0,0.00024504,2]
[311359116,1705067498195,-500.0,0.00024504,2]
[311359117,1705067498206,-572.67,0.00024504,2]
[311359118,1705067498216,-500.0,0.00024504,2]
[311359119,1705067498226,-500.0,0.00024504,2]
[311359120,1705067498236,-543.4,0.00024504,2]
[311359121,1705067498247,-500.0,0.00024504,2]
[311359122,1705067498257,-500.0,0.00024504,2]
[311359123,1705067498268,-686.86,0.00024504,2]
[311359124,1705067498278,-500.0,0.00024504,2]
[311359125,1705067498288,-500.0,0.00024504,2]
[311359126,1705067498300,-500.0,0.00024504,2]
[311359127,1705067498311,-513.03,0.00024504,2]
[311359128,1705067498323,-717.1,0.00024504,2]
[311359129,1705067498334,-500.0,0.00024504,2]
[311359130,1705067498344,-500.0,0.00024504,2]
[311359131,1705067498354,-915.79,0.00024504,2]
[311359132,1705067498365,-500.0,0.00024504,2]
[311359133,1705067498376,-628.12,0.00024504,2]
[311359134,1705067498387,-500.0,0.00024504,2]
[311359135,1705067498397,-578.39,0.00024504,2]
[311359136,1705067498409,-865.61,0.00024504,2]
[311359137,1705067498420,-500.0,0.00024504,2]
[311359138,1705067498431,-500.0,0.00024504,2]
[311359139,1705067498442,-500.0,0.00024504,2]
[311359140,1705067498453,-500.0,0.00024504,2]
[311359141,1705067498463,-504.98,0.00024504,2]
[311359142,1705067498474,-500.0,0.00024504,2]
[311359143,1705067498484,-785.43,0.00024504,2]
[311359144,1705067498495,-500.0,0.00024504,2]
[311359145,1705067498505,-500.0,0.00024504,2]
[311359146,1705067498515,-500.0,0.00024504,2]
[311359147,1705067498525,-500.0,0.00024504,2]
[311359148,1705067498535,-500.0,0.00024504,2]
[311359149,1705067498547,-802.88,0.00024504,2]
[311359150,1705067498557,-592.6,0.00024504,2]
[311359151,1705067498567,-500.0,0.00024504,2]
[311359152,1705067498578,-1046.21,0.00024504,2]
[311359153,1705067498587,-500.0,0.00024504,2]
[311359154,1705067498598,-500.0,0.00024504,2]
[311359155,1705067498608,-1019.63,0.00024504,2]
[311359156,1705067498619,-501.58,0.00024504,2]
[311359157,1705067498630,-500.0,0.00024504,2]
[311359158,1705067498641,-500.0,0.00024504,2]
[311359159,1705067498652,-1762.58,0.00024504,2]
[311359160,1705067498662,-500.0,0.00024504,2]
[311359161,1705067498672,-500.0,0.00024504,2]
[311359162,1705067498683,-742.28,0.00024504,2]
[311359163,1705067498693,-500.0,0.00024504,2]
[311359164,1705067498703,-1000.0,0.00024504,2]
[311359165,1705067498714,-500.0,0.00024504,2]
[311359166,1705067498725,-500.0,0.00024504,2]
[311359167,1705067498736,-551.57,0.00024504,2]
[311359168,1705067498746,-544.63,0.00024504,2]
[311359169,1705067498757,-500.0,0.00024504,2]
[311359170,1705067498767,-500.0,0.00024504,2]
[311359171,1705067498776,-500.0,0.00024504,2]
[311359172,1705067498786,-500.0,0.00024504,2]
[311359173,1705067498797,-511.99,0.00024504,2]
[311359174,1705067498808,-500.0,0.00024504,2]
[311359175,1705067498818,-500.0,0.00024504,2]
[311359176,1705067498829,-500.0,0.00024504,2]
[311359177,1705067498839,-513.65,0.00024504,2]
[311359178,1705067498850,-500.0,0.00024504,2]
[311359179,1705067498861,-500.0,0.00024504,2]
[311359180,1705067498871,-521.00036763,0.00024504,2]
[311359181,1705067498881,-500.0,0.00024504,2]
[311359182,1705067498891,-500.0,0.00024504,2]
[311359183,1705067498902,-500.0,0.00024504,2]
[311359184,1705067498913,-500.0,0.00024504,2]
[311359185,1705067498923,-522.55,0.00024504,2]
[311359186,1705067498933,-683.51,0.00024504,2]
[311359187,1705067498944,-500.0,0.00024504,2]
[311359188,1705067498954,-924.0,0.00024504,2]
[311359189,1705067498964,-500.0,0.00024504,2]
[311359190,1705067498974,-500.0,0.00024504,2]
[311359191,1705067498985,-500.0,0.00024504,2]
[311359192,1705067498996,-677.56,0.00024504,2]
[311359193,1705067499006,-500.0,0.00024504,2]
[311359194,1705067499017,-500.0,0.00024504,2]
[311359195,1705067499027,-500.0,0.00024504,2]
[311359196,1705067499037,-500.0,0.00024504,2]
[311359197,1705067499047,-500.0,0.00024504,2]
[311359198,1705067499058,-397.20545333,0.00024504,2]
[311359199,1705067499068,-612.68,0.00024504,2]
[311359200,1705067499078,-500.0,0.00024504,2]
[311359201,1705067499089,-500.0,0.00024504,2]
[311359202,1705067499099,-590.15,0.00024504,2]
[311359203,1705067499110,-457.3,0.00024504,2]
[311359204,1705067499119,-500.0,0.00024504,2]
[311359205,1705067499129,-505.02,0.00024504,2]
[311359206,1705067499140,-500.0,0.00024504,2]
[311359207,1705067499150,-548.99,0.00024504,2]
[311359208,1705067499161,-500.0,0.00024504,2]
[311359209,1705067499171,-543.6,0.00024504,2]
[311359210,1705067499185,-500.0,0.00024504,2]
[311359211,1705067499195,-632.89,0.00024504,2]
[311359212,1705067499206,-500.0,0.00024504,2]
[311359213,1705067499216,-500.0,0.00024504,2]
[311359214,1705067499228,-500.0,0.00024504,2]
[311359215,1705067499239,-1092.03,0.00024504,2]
[311359216,1705067499250,-710.83,0.00024504,2]
[311359217,1705067499260,-545.64,0.00024504,2]
[311359218,1705067499271,-533.57,0.00024504,2]
[311359219,1705067499283,-500.0,0.00024504,2]
[311359220,1705067499293,-500.0,0.00024504,2]
[311359221,1705067499305,-547.06,0.00024504,2]
[311359222,1705067499316,-1007.67,0.00024504,2]
[311359223,1705067499326,-1191.64,0.00024504,2]
[311359224,1705067499336,-500.0,0.00024504,2]
[311359225,1705067499346,-653.87,0.00024504,2]
[311359226,1705067499357,-500.0,0.00024504,2]
[311359227,1705067499367,-567.05,0.00024504,2]
[311359228,1705067499378,-616.57,0.00024504,2]
[311359229,1705067499388,-920.08,0.00024504,2]
[311359230,1705067499398,-500.0,0.00024504,2]
[311359231,1705067499409,-500.0,0.00024504,2]
[311359232,1705067499420,-500.0,0.00024504,2]
[311359233,1705067499430,-500.0,0.00024504,2]
[311359234,1705067499440,-500.0,0.00024504,2]
[311359235,1705067499451,-792.43,0.00024504,2]
[311359236,1705067499462,-500.0,0.00024504,2]
[311359237,1705067499472,-500.0,0.00024504,2]
[311359238,1705067499482,-717.68,0.00024504,2]
[311359239,1705067499492,-500.0,0.00024504,2]
[311359240,1705067499502,-615.74,0.00024504,2]
[311359241,1705067499512,-549.71,0.00024504,2]
[311359242,1705067499523,-500.0,0.00024504,2]
[311359243,1705067499533,-533.96,0.00024504,2]
[311359244,1705067499543,-545.26,0.00024504,2]
[311359245,1705067499556,-500.0,0.00024504,2]
[311359246,1705067499566,-500.0,0.00024504,2]
[311359247,1705067499576,-500.0,0.00024504,2]
[311359248,1705067499586,-500.0,0.00024504,2]
[311359249,1705067499596,-526.4,0.00024504,2]
[311359250,1705067499638,-753.76,0.00024504,2]
[311359251,1705067499649,-500.0,0.00024504,2]
[311359252,1705067499659,-500.0,0.00024504,2]
[311359253,1705067499670,-500.0,0.00024504,2]
[311359254,1705067499680,-568.06,0.00024504,2]
[311359255,1705067499690,-500.0,0.00024504,2]
[311359256,1705067499700,-500.0,0.00024504,2]
[311359257,1705067499711,-500.0,0.00024504,2]
[311359258,1705067499723,-806.29,0.00024504,2]
[311359259,1705067499733,-500.0,0.00024504,2]
[311359260,1705067499744,-500.0,0.00024504,2]